Cogmind - Beta 14 @@@ ROGUE MODE // 2024.11.15 @ 17:04:44 Player: Fangrelle Result: Destroyed by Y-45 Defender with Beam Rifle Performance ------------- Evolutions (1) 500 Regions Visited (3) 600 Robots Destroyed (123) 615 Value Destroyed (3226) 3226 Prototype IDs (6) 120 Alien Tech Used (0) 0 Bonus (795) 795 TOTAL SCORE: 5856 Bonus ------- High Alert Combat Kills 795 Cogmind --------- Core Integrity 0/400 Matter 58/300 Energy 280/280 System Corruption 0% Temperature Cool (51) Movement Rolling (210) Ox8 Location -9/Storage Parts ------- > --- POWER (1) -------- Heavy Ion Engine > --- PROPULSION (2) --- Light Treads Armored Wheel > --- UTILITY (2) ------ Improved Heat Sink Huge Storage Unit > --- WEAPON (4) ------- Heavy Assault Rifle Improved Light Cannon Improved Light Cannon Improved Light Cannon > --- INVENTORY (25) --- Heavy Ion Engine Light Treads Light Treads Improved Heat Sink Improved Heat Sink High-capacity Storage Unit High-capacity Battery (250) ECM Suite Light Armor Plating Light Armor Plating Light Armor Plating Shield Generator Hacking Suite Hacking Suite Hacking Suite Hacking Suite Hacking Suite Hacking Suite Heavy EM Pulse Gun Heavy EM Shotgun Heavy EM Shotgun Rocket Launcher Improved Grenade Launcher Datajack Mace Peak State ------------ > --- POWER ------------ Heavy Ion Engine > --- PROPULSION ------- Light Treads Armored Wheel > --- UTILITY ---------- Improved Heat Sink Huge Storage Unit > --- WEAPON ----------- Heavy EM Shotgun Heavy EM Shotgun Improved Light Cannon Improved Light Cannon > --- INVENTORY -------- Improved Ion Engine Heavy Ion Engine Improved Flight Unit Heat Sink Heat Sink Heat Sink Improved Heat Sink High-capacity Storage Unit High-capacity Battery Light Armor Plating Light Armor Plating Shield Generator Hacking Suite Hacking Suite Hacking Suite Hacking Suite Hacking Suite Tractor Beam Heavy EM Pulse Gun Heavy Assault Rifle Improved Light Cannon Rocket Launcher Improved Grenade Launcher Datajack Mace [Rating: 27] Favorites ----------- Power Heavy Ion Engine Engine Heavy Ion Engine Propulsion Light Treads Treads Light Treads Leg Aluminum Leg Wheel Armored Wheel Flight Unit Improved Flight Unit Utility Huge Storage Unit Device Tractor Beam Storage Huge Storage Unit Protection Light Armor Plating Weapon Improved Light Cannon Energy Gun Heavy EM Shotgun Energy Cannon Advanced Beam Cannon Ballistic Gun Heavy Assault Rifle Ballistic Cannon Improved Light Cannon Launcher Rocket Launcher Impact Weapon Mace Build | -11 -10 -9 -9 ------- Run | Yrd Mat Mat Sto Slots Evolved 2 | . . 2 . Power . | . . . . Propulsion . | . . . . Utility . | . . . . Weapon 2 | . . 2 . Parts Attached 61 | . 8 44 9 Power 5 | . . 4 1 Engine 5 | . . 4 1 Core . | . . . . Reactor . | . . . . Propulsion 12 | . . 11 1 Treads 10 | . . 9 1 Leg . | . . . . Wheel 1 | . . 1 . Hover . | . . . . Flight 1 | . . 1 . Utility 12 | . 3 7 2 Device 7 | . 1 5 1 Storage 3 | . 2 1 . Processor . | . . . . Hackware . | . . . . Protection 2 | . . 1 1 Artifact . | . . . . Weapon 32 | . 5 22 5 Energy Gun 8 | . 2 6 . Energy Cannon 2 | . 1 1 . Ballistic Gun 2 | . . 1 1 Ballistic Cannon 18 | . 2 14 2 Launcher 1 | . . . 1 Special Weapon . | . . . . Impact Weapon 1 | . . . 1 Slashing Weapon . | . . . . Piercing Weapon . | . . . . Special Melee Weapon . | . . . . Unidentified Prototypes 6 | . . 6 . Parts Lost 11 | . 2 8 1 Power 1 | . 1 . . Propulsion 2 | . . 2 . Utility 3 | . . 2 1 Weapon 5 | . 1 4 . Highest Loss Streak 5 | . 2 5 1 To Critical Strikes . | . . . . Average Slot Usage (%) 94 | . 89 95 99 Engine 10 | . 9 9 11 Treads 11 | . . 15 11 Leg 7 | . 28 3 . Wheel 3 | . . 2 11 Device 9 | . 8 9 9 Storage 11 | . 14 11 11 Energy Gun 8 | . 5 8 14 Energy Cannon 6 | . 4 8 . Ballistic Gun 1 | . . . 5 Ballistic Cannon 23 | . 16 26 22 Peak Build Rating 27 | 6 8 27 27 Average Rating 18 | 6 6 19 25 On Entrance 11 | 6 6 6 26 Naked Turns . | . . . . Heaviest Build 107 | 10 30 106 107 Greatest Support 40 | 20 20 40 12 Greatest Overweight (x) 34 | . 1 34 8 Average Overweight (x) 3 | . . 4 8 Largest Inventory Capacity 25 | 8 15 25 25 Average Capacity 22 | 8 11 24 25 Most Carried 25 | 6 9 25 25 Average Carried 18 | 6 7 20 24 Final Capacity 25 | 8 15 25 25 Final Carried 25 | 6 7 25 25 Class Distribution -------------------- 65% | Gunner 19% | Mutant 14% | Tank Dominant Class ---------------- Mutant | -10/Materials Gunner | -9/Materials Gunner | -9/Storage Resources | -11 -10 -9 -9 ----------- Run | Yrd Mat Mat Sto Matter Collected 2288 | 200 276 1514 298 Remotely 296 | . 210 86 . Salvage Created 3794 | . 448 2321 1025 Parts 252 | . 39 135 78 Haulers Intercepted 8 | . 1 4 3 Recyclers Shooed . | . . . . Parts Field Recycled . | . . . . Retrieved Matter . | . . . . Parts Self-Destructed . | . . . . Prevented . | . . . . Kills | -11 -10 -9 -9 ------- Run | Yrd Mat Mat Sto Combat Hostiles Destroyed 81 | . 11 48 22 Guns 15 | . 2 6 7 Cannons 56 | . 9 37 10 AOE 9 | . . 4 5 Classes Destroyed 13 | . 6 6 1 Worker 6 | . . 4 2 Builder 4 | . . 1 3 Tunneler 2 | . . 2 . Hauler 8 | . 1 4 3 Recycler 7 | . 1 6 . Mechanic 1 | . . . 1 Operator 7 | . 2 4 1 Watcher 10 | . 3 5 2 Swarmer 15 | . 3 6 6 Grunt 43 | . 8 29 6 Duelist 2 | . . 2 . Protector 1 | . . 1 . Sentry 20 | . . 10 10 Best Kill Streak 8 | . 3 7 8 Combat Bots Only 5 | . 3 5 4 Max Kills in Single Turn 4 | . 1 4 4 Gunslinging . | . . . . Exploded 4 | . . 4 3 Melee . | . . . . Uniques/NPCs Destroyed . | . . . . Combat | -11 -10 -9 -9 -------- Run | Yrd Mat Mat Sto Hostile Shots Fired 310 | . 51 210 49 Missed 90 | . 15 57 18 Damage Taken 3305 | . 514 2342 449 Core 556 | . 143 371 42 Absorbed by Shields 60 | . . 40 20 Regen/Repaired (Parts) 126 | . . . 126 Core Remaining (%) 71 | 100 42 . . Volleys Fired 191 | . 47 99 45 Largest 4 | . 2 4 4 Hottest 214 | . 95 214 178 Shots Fired 611 | . 84 374 153 Gun 137 | . 29 50 58 Cannon 471 | . 55 324 92 Launcher 3 | . . . 3 Special . | . . . . Kinetic 407 | . 49 253 105 Thermal 112 | . 35 77 . Explosive 3 | . . . 3 Electromagnetic 89 | . . 44 45 Robot Hit Streak 11 | . 9 11 8 Robot Miss Streak 6 | . 2 6 4 Penetration Max . | . . . . Secondary Targets . | . . . . Shots Hit Robots 294 | . 51 165 78 Core Hits 148 | . 21 86 41 Critical Kills 1 | . . 1 . Critical Parts Destroyed . | . . . . Critical Strikes 11 | . 1 6 4 Meltdown 1 | . . 1 . Blast 10 | . 1 5 4 Melee Attacks 2 | . . . 2 Impact 2 | . . . 2 Slashing . | . . . . Piercing . | . . . . Sneak Attacks . | . . . . Combat Hostiles . | . . . . Follow-up Attacks . | . . . . Damage Inflicted 7867 | . 803 4834 2230 Guns 1537 | . 176 628 733 Cannons 4557 | . 627 3090 840 Explosions 1745 | . . 1088 657 Melee . | . . . . Ramming 28 | . . 28 . Kinetic 3750 | . 608 2204 938 Thermal 2383 | . 195 2005 183 Explosive 474 | . . . 474 Electromagnetic 1232 | . . 597 635 Impact . | . . . . Slashing . | . . . . Piercing . | . . . . Highest Corruption . | . . . . Average Corruption . | . . . . Corruption Purged . | . . . . Corruption Blocked . | . . . . Overload Shots . | . . . . Overflow Damage 286 | . 11 240 35 Projectiles 62 | . 11 51 . Explosions 224 | . . 189 35 Melee . | . . . . Knockbacks 29 | . 10 17 2 Impact . | . . . . Kinetic 29 | . 10 17 2 Secondary . | . . . . Self-Inflicted Damage 407 | . . 313 94 Shots 6 | . . 4 2 Rammed 1 | . . 1 . Targets Rammed 1 | . . 1 . Kicked . | . . . . Crushed . | . . . . Highest Temperature 585 | . 330 585 442 Average Temperature 127 | . 85 145 99 Received Heat Transfer 1092 | . 210 750 132 Effects 23 | . 2 19 2 Shutdowns 3 | . . 3 . Energy Bleed 6 | . . 4 2 Interference 9 | . 2 7 . Matter Decay 3 | . . 3 . Short Circuit 2 | . . 2 . Siege Activations . | . . . . Robots Corrupted . | . . . . Combat Hostiles . | . . . . Parts Fried 1 | . . . 1 Impact Corruptions . | . . . . Robots Melted 1 | . . 1 . Combat Hostiles 1 | . . 1 . Parts Melted 5 | . . 4 1 Heat Transferred 3039 | . 437 2402 200 Parts Sabotaged . | . . . . Parts Stolen . | . . . . Parts Stripped . | . . . . Power Chain Reactions 4 | . . 2 2 Alert | -11 -10 -9 -9 ------- Run | Yrd Mat Mat Sto Peak Influence 1337 | . 200 1337 1049 Initial 561 | . . 37 561 Average 455 | . 83 518 649 Maximum Alert Level 4 | . 1 4 3 Low Security (%) 39 | 100 97 31 . Level 1 10 | . 2 15 . Level 2 26 | . . 23 64 Level 3 13 | . . 11 35 Level 4 10 | . . 16 . Level 5 . | . . . . High Security . | . . . . Max Security . | . . . . Squads Dispatched 12 | . 3 8 1 Investigation 7 | . 2 4 1 Extermination . | . . . . Reinforcement 4 | . 1 3 . Assault 1 | . . 1 . Garrison . | . . . . Intercept . | . . . . Searches Triggered . | . . . . Construction Impeded . | . . . . Haulers Reinforced . | . . . . Active Scanning Responses . | . . . . Cargo Convoy Interrupts . | . . . . Stealth | -11 -10 -9 -9 --------- Run | Yrd Mat Mat Sto Distress Signals 8 | . 2 4 2 Communications Jammed . | . . . . Distress Signals . | . . . . Times Spotted 103 | . 21 57 25 Peak Tracking Total 5 | . 5 5 5 Tactical Retreats 3 | . . 2 1 Traps | -11 -10 -9 -9 ------- Run | Yrd Mat Mat Sto Traps Triggered 2 | . 2 . . Indirectly . | . . . . Trap Hack Attempts . | . . . . Triggered . | . . . . Disarmed . | . . . . Reprogrammed . | . . . . Reused . | . . . . Traps Extracted . | . . . . Installed . | . . . . Triggered . | . . . . Machines | -11 -10 -9 -9 ---------- Run | Yrd Mat Mat Sto Machines Disabled 23 | . 2 14 7 Max in Single Turn 8 | . 1 8 1 Garrison Access 1 | . . . 1 Machines Repaired . | . . . . Machines Dismantled . | . . . . Machines Sabotaged . | . . . . Overloaded Fab Kills . | . . . . Hacking | -11 -10 -9 -9 --------- Run | Yrd Mat Mat Sto Machines Accessed 33 | . 9 14 10 Terminals 23 | . 7 9 7 Fabricators . | . . . . Repair Stations 3 | . 1 1 1 Recycling Units 4 | . 1 2 1 Scanalyzers 2 | . . 2 . Garrison Access 1 | . . . 1 Total Hacks 109 | . 28 50 31 Successful 69 | . 18 28 23 Failed 40 | . 10 22 8 Catastrophic 8 | . 2 6 . Database Lockouts . | . . . . Manual 81 | . 26 32 23 Terminals 79 | . 24 30 25 Fabricators . | . . . . Repair Stations 5 | . 1 2 2 Recycling Units 11 | . 3 5 3 Scanalyzers 13 | . . 13 . Garrison Access 1 | . . . 1 Terminal Hacks 12 | . 3 1 8 Record 1 | . . . 1 Robot Analysis 3 | . 3 . . Open Door 1 | . . . 1 Branch Access Points 1 | . . 1 . Alert Level 2 | . . . 2 Unreport Threat 3 | . . . 3 Zone Layout 1 | . . . 1 Fabricator Hacks . | . . . . Repair Station Hacks 3 | . . 1 2 Scan Component 2 | . . 1 1 Repair 1 | . . . 1 Recycling Unit Hacks 5 | . 2 2 1 Report Inventory 2 | . 1 . 1 Retrieve Components 3 | . 1 2 . Scanalyzer 11 | . . 11 . Insert Component 5 | . . 5 . Analyze 6 | . . 6 . Garrison Access Hacks 1 | . . . 1 Seal Access 1 | . . . 1 Unauthorized Hacks 37 | . 13 13 11 Terminals 33 | . 11 12 10 Assimilate 7 | . 4 2 1 Botnet 19 | . 5 8 6 Operators 1 | . 1 . . Skim 6 | . 1 2 3 Fabricators . | . . . . Repair Stations 1 | . 1 . . Mechanics 1 | . 1 . . Recycling Units 3 | . 1 1 1 Tunnel 3 | . 1 1 1 Scanalyzers . | . . . . Garrison Access . | . . . . Data Cores Recovered 3 | . 1 1 1 Used 1 | . . 1 . Hacking Detections 28 | . 8 13 7 Full Trace Events 5 | . 1 4 . Feedback Events . | . . . . Feedback Blocked . | . . . . Robot Schematics Acquired . | . . . . Robots Built . | . . . . Authchips . | . . . . Time . | . . . . Total Robot Build Rating . | . . . . Part Schematics Acquired 5 | . . 5 . Parts Built . | . . . . Authchips . | . . . . Time . | . . . . Total Part Build Rating . | . . . . Parts Repaired 1 | . . . 1 Time 32 | . . . 32 Parts Recycled . | . . . . Recycled Matter . | . . . . Retrieved Matter . | . . . . Retrieved Components 28 | . 9 19 . Parts Scanalyzed 5 | . . 5 . Part Schematics Acquired 5 | . . 5 . Parts Damaged . | . . . . Bothacking | -11 -10 -9 -9 ------------ Run | Yrd Mat Mat Sto Used RIF Installer . | . . . . Robots Hacked . | . . . . Non-combat . | . . . . Combat . | . . . . Robot Hacks Applied . | . . . . Relay Couplers Released . | . . . . Fabnet Peak Effective % . | . . . . Robots Rewired . | . . . . Allies Hacked . | . . . . Hacks Repelled . | . . . . Allies | -11 -10 -9 -9 -------- Run | Yrd Mat Mat Sto Total Allies . | . . . . Largest Group . | . . . . Highest-Rated Group . | . . . . Highest-Rated Ally . | . . . . Total Orders . | . . . . Ally Attacks . | . . . . Total Damage . | . . . . Kills . | . . . . Allies Corrupted . | . . . . Allies Melted . | . . . . Intel | -11 -10 -9 -9 ------- Run | Yrd Mat Mat Sto Robot Analysis Total 3 | . 3 . . Derelict Logs Recovered . | . . . . Drone Launches . | . . . . Drone Recoveries . | . . . . Exploration | -11 -10 -9 -9 ------------- Run | Yrd Mat Mat Sto Turns Passed 7787 | 3 1547 4809 1428 Spaces Moved 2711 | 3 754 1426 528 Core 1 | . . 1 . Treads 750 | . . 750 . Legs 951 | 3 754 194 . Wheels 1009 | . . 481 528 Hover . | . . . . Flight . | . . . . Fastest Speed 120 | 120 120 190 210 Average Speed 240 | 120 148 300 210 Slowest Speed 1750 | 120 190 1750 210 Overloaded Moves . | . . . . Propulsion Burnouts . | . . . . Robots Hopped . | . . . . Cave-ins Triggered . | . . . . Exploration Rate (%) 68 | 1 97 95 81 Regions Visited 3 Branch Regions 1 Pre-discovered Areas 3 | . 1 1 1 Known Exits Taken 1 | . . 1 . Unknown Exits Taken 2 | 1 1 . . Scrap Searched . | . . . . Spaces Dug 1 | . . . 1 Terrain Destroyed 194 | . . 137 57 Melee 1 | . . . 1 Projectile 23 | . . 17 6 AOE 170 | . . 120 50 Terrain Rammed . | . . . . Walls Destroyed . | . . . . Machines Disabled . | . . . . Actions | -11 -10 -9 -9 --------- Run | Yrd Mat Mat Sto Total 3553 | 2 1094 1715 742 Wait 454 | . 276 36 142 Move 2708 | 2 753 1425 528 Hop . | . . . . Pick Up 70 | . 4 59 7 Fast Attach 19 | . 3 14 2 Attach 12 | . . 11 1 Detach 1 | . . 1 . Swap 30 | . 5 19 6 Drop 65 | . 6 50 9 Fire 191 | . 47 99 45 Melee 2 | . . . 2 Ram 1 | . . 1 . Kick . | . . . . Crush . | . . . . Escape Stasis . | . . . . Rewire . | . . . . Trap . | . . . . Miscellaneous . | . . . . Route ------- -11/Scrapyard -10/Materials (discovered 4 exits: *Mat x3 / [*Min]) -9/Materials (discovered 6 exits: [*Mat x3] / *Min x2 / *Sto) -9/Storage History --------- Turn | Location | Event 1 | -11/Scrapyard | Discovered new exit (range 3) 4 | -11/Scrapyard | Entered Materials 244 | -10/Materials | Discovered new exit (range 14) 310 | -10/Materials | Build established: Mutant 659 | -10/Materials | Discovered new exit (range 4) 1027 | -10/Materials | Core integrity fell below 50% 1056 | -10/Materials | Discovered new exit (range 6) 1397 | -10/Materials | Discovered new exit (range 16) 1551 | -10/Materials | Entered another Materials area 1551 | -9/Materials | Evolved 2 slots: Weapon x2 1860 | -9/Materials | Build established: Gunner 2565 | -9/Materials | Discovered new exit (range 15) 2967 | -9/Materials | Discovered new exit (range 15) 3080 | -9/Materials | Discovered new exit (range 10) 4338 | -9/Materials | Discovered new exit (range 16) 4472 | -9/Materials | Core integrity fell below 50% 5151 | -9/Materials | First assault squad dispatched 5237 | -9/Materials | Core integrity fell below 20% 5267 | -9/Materials | Lost 5 parts (2n1u2w) 5458 | -9/Materials | Discovered new exit (range 16) 5509 | -9/Materials | Build established: Tank 6003 | -9/Materials | Discovered new exit (range 8) 6017 | -9/Materials | Identified exit to Mines 6017 | -9/Materials | Identified exit to Storage 6360 | -9/Materials | Entered Storage 6908 | -9/Storage | Build established: Gunner 7553 | -9/Storage | Repaired Imp. Light Cannon 7788 | -9/Storage | Destroyed by Y-45 Defender with Beam Rifle Last Messages --------------- Imp. Light Cannon Rating: 2 Time: 32 >>Repair Repairing Imp. Light Cannon... ETC: 32 07553_ Repair station completes Imp. Light Cannon repairs. 07553_ Acquired Imp. Light Cannon. 07570_ Y-45 Defender destroyed. 07576_ Acquired 41 matter. 07580_ Dropped Lgt. Armor Plating. 07580_ Acquired Lgt. Armor Plating. 07600_ U-05 Engineer builds a Wall. 07630_ Transfer Shaft disabled. 07632_ Y-45 Defender destroyed. 07638_ G-34 Mercenary knocked back. 07638_ Transfer Shaft disabled. 07638_ G-34 Mercenary destroyed. 07650_ Y-45 Defender destroyed. 07659_ Acquired 3 matter. Map ----- +----------------------------------------------------+ | | | | | | | | | | | | | | | | | ????????????????????????????????????????? | | ????????????????????????????????????????? | | ###############?????????????????????????? | | ?????????????????????????? | | ?????????????????????????? | | ? ?????????????????????? | | ??????????????????? | | ??????????????????? | | ??????????????????? | | #+########### ?????????????????? | | #?????# ?????????????????? | | "" #?????# ?????????????????? | | "" !]#?????# ???????????##???? | | "" ] #?????# ????????? % ##??? | | #?????# ??????? Y #??? | | "" #?????# ###?? #???? | | R #?????# # % #???? | | "" #?????# @/ """ ""??????? | | [#?????# # """ ""??????? | | #######??????############ #??"" "???????? | | #####!#######??????????##a#???? ???????? | | #=! % #?????????? # #?????????????? | | """# ! #?????????? # #?????????????? | | """# """#????????? #r#?????????????? | | """# """#????????? # #?????????????? | | """# """#????????? # #?????????????? | | """# """#????????? # #?????????????? | | # """#????????? #+########??????? | | #### #?????"""" # #??????? | | ???# #?????? # #??????? | | ???######+#########+#+### """" #??????? | | ???# ^ # "??" #??????? | | ???#^ + "??" #??????? | | ???#^ # "??" #??????? | | #########+#########+###+# "??" #??????? | | #??# = ## # """" #??????? | | #??#!!""" ## # #??????? | | #??#= """ ##! !##########??????? | | #??#%!=" ## #???????????????? | | " #??#%!%= ## """" #???????????????? | | #??#%*"!" # """" #???????????????? | | ###??#[%""" ## """" #???????????????? | +----------------------------------------------------+ Best States ------------- Heat Dissipation 42 Energy Generation 14 Energy Capacity 280 Matter Stores 300 Matter Capacity 300 Sight Range 16 Terrain Scan Density 10 Armor Coverage 150 Evasion (%) 55 Recoil Reduction 2 Item Schematics ----------------- Hacking Suite | -9/Materials | Scanalyzed Imp. Flight Unit | -9/Materials | Scanalyzed Imp. Light Cannon | -9/Materials | Scanalyzed Hcp. Storage Unit | -9/Materials | Scanalyzed Hvy. Ion Engine | -9/Materials | Scanalyzed Robot Schematics ------------------ None Fabricated ------------ Nothing Alien Tech Used ----------------- None Achievements -------------- None Challenges ------------ None Game ------ Seed ChromaticCoilProcessor Manual? 0 Play Time 00:37:05 Cumulative 82.1 hours Start 2024.11.15 @ 16:27:25 End 2024.11.15 @ 17:04:44 Sessions 1 Manual Loads 0 Difficulty Rogue Special Mode None Game No. 142 Rogue 142 Adventurer 0 Explorer 0 Win Type - Total 0 Types 0/0/0/0/0/0/0/0/0 Lore% 41 Gallery% 36 Achievement% 34 Wizard Run 0 Options --------- Layout 0 ASCII 0 Keyboard 0 Movement Mouse Keybinds 0 Fullscreen 1 Font 24/Smallcaps Map View 91x25 Zoom Use 88% Tactical HUD 1 Map Filters NONE Filters NONE Steam 1 RUN: bf2074da-25d1-4969-9aff-945b89c37889